[Event "*** Titled Tuesday Blitz"]
[Site "Chess.com"]
[Date "2020.04.28"]
[Round "1"]
[White "awesomevishesh"]
[Black "MarcoCorvi"]
[Result "1-0"]
[WhiteElo "2530"]
[BlackElo "2176"]
[TimeControl "180+1"]
[EndTime "10:07:53 PDT"]
[Termination "awesomevishesh won by checkmate"]

1. d4 {[%clk 0:03:00.9]} 1... f5 {[%clk 0:02:58.1]} 2. Nf3 {[%clk 0:03:00.1]}
2... Nf6 {[%clk 0:02:56.6]} 3. g3 {[%clk 0:02:59.4]} 3... e6 {[%clk 0:02:55.3]}
4. Bg2 {[%clk 0:02:59.2]} 4... Be7 {[%clk 0:02:55.5]} 5. O-O {[%clk 0:02:58.9]}
5... O-O {[%clk 0:02:55.3]} 6. c4 {[%clk 0:02:58.3]} 6... d6 {[%clk 0:02:54.6]}
7. Nc3 {[%clk 0:02:56.3]} 7... Qe8 {[%clk 0:02:54.5]} 8. b3 {[%clk 0:02:54.5]}
8... Ne4 {[%clk 0:02:53.7]} 9. Bb2 {[%clk 0:02:23.6]} 9... Nxc3 {[%clk
0:02:51.3]} 10. Bxc3 {[%clk 0:02:23.2]} 10... Bf6 {[%clk 0:02:52.2]} 11. Qc2
{[%clk 0:02:19.8]} 11... Nc6 {[%clk 0:02:44.1]} 12. e4 {[%clk 0:02:18.1]} 12...
fxe4 {[%clk 0:02:31.4]} 13. Qxe4 {[%clk 0:02:17.2]} 13... Qh5 {[%clk 0:02:20.2]}
14. b4 {[%clk 0:01:55]} 14... d5 {[%clk 0:01:59.7]} 15. Qd3 {[%clk 0:01:51.3]}
15... Bd7 {[%clk 0:01:45.1]} 16. Rfe1 {[%clk 0:01:39.6]} 16... Rae8 {[%clk
0:01:43.8]} 17. c5 {[%clk 0:01:25.8]} 17... a6 {[%clk 0:01:41.5]} 18. a4 {[%clk
0:01:25.1]} 18... Ne7 {[%clk 0:01:27.6]} 19. b5 {[%clk 0:01:24]} 19... axb5
{[%clk 0:01:26.6]} 20. axb5 {[%clk 0:01:24.9]} 20... Ra8 {[%clk 0:01:20.7]} 21.
h3 {[%clk 0:00:56.5]} 21... Qg6 {[%clk 0:01:10.9]} 22. Qe2 {[%clk 0:00:50.5]}
22... Rxa1 {[%clk 0:01:07.8]} 23. Rxa1 {[%clk 0:00:50.2]} 23... Qe4 {[%clk
0:01:05]} 24. Qb2 {[%clk 0:00:28.4]} 24... Qd3 {[%clk 0:00:59.9]} 25. b6 {[%clk
0:00:12.9]} 25... cxb6 {[%clk 0:00:56.5]} 26. cxb6 {[%clk 0:00:13.8]} 26... Nc6
{[%clk 0:00:54.6]} 27. Ne1 {[%clk 0:00:12.5]} 27... Qg6 {[%clk 0:00:46.5]} 28.
Nf3 {[%clk 0:00:11.6]} 28... Qd3 {[%clk 0:00:34.3]} 29. Ne1 {[%clk 0:00:10]}
29... Qf5 {[%clk 0:00:31.8]} 30. Nf3 {[%clk 0:00:09.2]} 30... g5 {[%clk
0:00:29.8]} 31. Ne5 {[%clk 0:00:08.6]} 31... Bxe5 {[%clk 0:00:26.9]} 32. dxe5
{[%clk 0:00:08.7]} 32... d4 {[%clk 0:00:27.1]} 33. Bxd4 {[%clk 0:00:08.2]} 33...
h5 {[%clk 0:00:19.8]} 34. Bc3 {[%clk 0:00:06.7]} 34... g4 {[%clk 0:00:19.7]} 35.
hxg4 {[%clk 0:00:06.3]} 35... hxg4 {[%clk 0:00:20.6]} 36. Qd2 {[%clk 0:00:06]}
36... Kf7 {[%clk 0:00:18.8]} 37. Qxd7+ {[%clk 0:00:05.9]} 37... Kg6 {[%clk
0:00:17.5]} 38. Qd2 {[%clk 0:00:05.4]} 38... Rf7 {[%clk 0:00:17]} 39. Qe2 {[%clk
0:00:05.5]} 39... Rh7 {[%clk 0:00:16.8]} 40. Be4 {[%clk 0:00:05.6]} 40... Ne7
{[%clk 0:00:11.2]} 41. Qxg4+ {[%clk 0:00:05.2]} 41... Kf7 {[%clk 0:00:10.4]} 42.
Bxf5 {[%clk 0:00:05.6]} 42... Nxf5 {[%clk 0:00:11.3]} 43. Qc4 {[%clk 0:00:05.6]}
43... Rg7 {[%clk 0:00:12.2]} 44. Qc7+ {[%clk 0:00:05.7]} 44... Kg6 {[%clk
0:00:13.1]} 45. Qc8 {[%clk 0:00:05.8]} 45... Rf7 {[%clk 0:00:12.3]} 46. Qxe6+
{[%clk 0:00:05.8]} 46... Kg7 {[%clk 0:00:11.8]} 47. Qd5 {[%clk 0:00:06.1]} 47...
Kf8 {[%clk 0:00:12.7]} 48. e6 {[%clk 0:00:06.4]} 48... Ke8 {[%clk 0:00:13.6]}
49. exf7+ {[%clk 0:00:06.6]} 49... Kf8 {[%clk 0:00:13.6]} 50. Qxf5 {[%clk
0:00:06.7]} 50... Ke7 {[%clk 0:00:13.2]} 51. f8=Q# {[%clk 0:00:07.1]} 1-0

[Event "*** Titled Tuesday Blitz"]
[Site "Chess.com"]
[Date "2020.04.28"]
[Round "1"]
[White "pooh2012"]
[Black "PawnEatingZombie"]
[Result "1-0"]
[WhiteElo "2510"]
[BlackElo "2115"]
[TimeControl "180+1"]
[EndTime "10:07:53 PDT"]
[Termination "pooh2012 won on time"]

1. Nf3 {[%clk 0:02:59.6]} 1... d5 {[%clk 0:02:59.5]} 2. g3 {[%clk 0:03:00.5]}
2... e6 {[%clk 0:02:58.2]} 3. Bg2 {[%clk 0:03:00.9]} 3... b5 {[%clk 0:02:58.2]}
4. a4 {[%clk 0:02:59.7]} 4... b4 {[%clk 0:02:57.5]} 5. c4 {[%clk 0:02:55.8]}
5... Nf6 {[%clk 0:02:36.7]} 6. O-O {[%clk 0:02:49.5]} 6... Bb7 {[%clk
0:02:36.6]} 7. b3 {[%clk 0:02:40.2]} 7... dxc4 {[%clk 0:02:29.2]} 8. bxc4 {[%clk
0:02:39.2]} 8... a5 {[%clk 0:02:27.4]} 9. Bb2 {[%clk 0:02:37]} 9... Be7 {[%clk
0:02:26.2]} 10. d4 {[%clk 0:02:36.7]} 10... O-O {[%clk 0:02:19.6]} 11. c5 {[%clk
0:02:29.6]} 11... Bd5 {[%clk 0:02:04]} 12. Nbd2 {[%clk 0:02:26.7]} 12... Qc8
{[%clk 0:01:55.9]} 13. Qc2 {[%clk 0:02:18.1]} 13... Qb7 {[%clk 0:01:53.3]} 14.
Rfe1 {[%clk 0:02:17.6]} 14... Ne4 {[%clk 0:01:49.8]} 15. Nc4 {[%clk 0:01:47.4]}
15... b3 {[%clk 0:01:30.2]} 16. Qc1 {[%clk 0:01:44]} 16... Nc6 {[%clk 0:01:26]}
17. Rb1 {[%clk 0:01:01.3]} 17... Nb4 {[%clk 0:01:25.3]} 18. Nce5 {[%clk
0:00:54.4]} 18... Na2 {[%clk 0:00:54.2]} 19. Qe3 {[%clk 0:00:50.2]} 19... f6
{[%clk 0:00:42.9]} 20. Nd3 {[%clk 0:00:27.5]} 20... Rfe8 {[%clk 0:00:33.8]} 21.
Nf4 {[%clk 0:00:26.1]} 21... Bf8 {[%clk 0:00:31.3]} 22. Nxd5 {[%clk 0:00:26]}
22... exd5 {[%clk 0:00:31]} 23. Qd3 {[%clk 0:00:26]} 23... Rab8 {[%clk
0:00:25.9]} 24. Nd2 {[%clk 0:00:22.6]} 24... Nb4 {[%clk 0:00:25]} 25. Qe3 {[%clk
0:00:18.3]} 25... Nc2 {[%clk 0:00:24.7]} 26. Qf4 {[%clk 0:00:17]} 26... Nxe1
{[%clk 0:00:23.8]} 27. Rxe1 {[%clk 0:00:17.9]} 27... Nxd2 {[%clk 0:00:23.5]} 28.
Qxd2 {[%clk 0:00:18.5]} 28... c6 {[%clk 0:00:18.4]} 29. Ra1 {[%clk 0:00:10.5]}
29... Qb4 {[%clk 0:00:17.5]} 30. Bc3 {[%clk 0:00:10.8]} 30... Qc4 {[%clk
0:00:15.5]} 31. e3 {[%clk 0:00:10.7]} 31... Qa6 {[%clk 0:00:14]} 32. Bf1 {[%clk
0:00:10]} 32... Qb7 {[%clk 0:00:11.7]} 33. Rb1 {[%clk 0:00:10.4]} 33... f5
{[%clk 0:00:08]} 34. Bxa5 {[%clk 0:00:10.4]} 34... Ra8 {[%clk 0:00:06.7]} 35.
Bb6 {[%clk 0:00:09.5]} 35... Rxa4 {[%clk 0:00:05.6]} 36. Rxb3 {[%clk 0:00:10.1]}
36... Rea8 {[%clk 0:00:04.7]} 37. Bd3 {[%clk 0:00:09.3]} 37... Qf7 {[%clk
0:00:03.5]} 38. Rb1 {[%clk 0:00:07.1]} 38... g6 {[%clk 0:00:03.9]} 39. Qc2
{[%clk 0:00:06.3]} 39... Bh6 {[%clk 0:00:03.7]} 40. Qd1 {[%clk 0:00:06]} 40...
Ra2 {[%clk 0:00:03.6]} 41. Qf3 {[%clk 0:00:05.8]} 41... Ra1 {[%clk 0:00:01.5]}
42. Rxa1 {[%clk 0:00:05.2]} 42... Rxa1+ {[%clk 0:00:01.8]} 43. Kg2 {[%clk
0:00:06.1]} 43... Ra2 {[%clk 0:00:01.8]} 44. Bc7 {[%clk 0:00:06.1]} 44... Qe6
{[%clk 0:00:01.7]} 45. Be5 {[%clk 0:00:06]} 45... Bg7 {[%clk 0:00:01.9]} 46.
Bxg7 {[%clk 0:00:05.5]} 46... Kxg7 {[%clk 0:00:02.8]} 47. h3 {[%clk 0:00:06]}
47... h6 {[%clk 0:00:02.4]} 48. g4 {[%clk 0:00:06.6]} 48... fxg4 {[%clk
0:00:02.1]} 49. hxg4 {[%clk 0:00:07.5]} 49... Rb2 {[%clk 0:00:01.2]} 50. Qg3
{[%clk 0:00:07.5]} 1-0

[Event "*** Titled Tuesday Blitz"]
[Site "Chess.com"]
[Date "2020.04.28"]
[Round "1"]
[White "Pechen_Yeltsina"]
[Black "grunbergmihai"]
[Result "1-0"]
[WhiteElo "2763"]
[BlackElo "2408"]
[TimeControl "180+1"]
[EndTime "10:07:54 PDT"]
[Termination "Pechen_Yeltsina won by resignation"]

1. e4 {[%clk 0:03:00.9]} 1... Nf6 {[%clk 0:02:59.6]} 2. e5 {[%clk 0:02:59.9]}
2... Nd5 {[%clk 0:02:59.6]} 3. d4 {[%clk 0:03:00.8]} 3... d6 {[%clk 0:02:59.6]}
4. c4 {[%clk 0:03:01.3]} 4... Nb6 {[%clk 0:02:59.5]} 5. exd6 {[%clk 0:03:01.8]}
5... cxd6 {[%clk 0:02:59.3]} 6. Nc3 {[%clk 0:03:00.4]} 6... g6 {[%clk
0:03:00.2]} 7. Nf3 {[%clk 0:02:58.5]} 7... Bg7 {[%clk 0:03:00.7]} 8. h3 {[%clk
0:02:58.9]} 8... O-O {[%clk 0:03:01.5]} 9. Be3 {[%clk 0:02:59.3]} 9... Nc6
{[%clk 0:03:00.4]} 10. Be2 {[%clk 0:02:57.7]} 10... Bf5 {[%clk 0:03:00]} 11. O-O
{[%clk 0:02:51.8]} 11... d5 {[%clk 0:02:59.9]} 12. b3 {[%clk 0:02:48.4]} 12...
dxc4 {[%clk 0:02:58.7]} 13. bxc4 {[%clk 0:02:49.3]} 13... Na5 {[%clk 0:02:55.1]}
14. c5 {[%clk 0:02:31]} 14... Nbc4 {[%clk 0:02:54.6]} 15. Bf4 {[%clk 0:02:07.8]}
15... b6 {[%clk 0:02:48.5]} 16. Qa4 {[%clk 0:01:55.6]} 16... Bd7 {[%clk
0:02:40.3]} 17. Qb4 {[%clk 0:01:46.5]} 17... bxc5 {[%clk 0:02:39.4]} 18. dxc5
{[%clk 0:01:45.9]} 18... e5 {[%clk 0:02:22.1]} 19. Bg5 {[%clk 0:01:27.5]} 19...
Qb8 {[%clk 0:02:17.1]} 20. a3 {[%clk 0:01:22.3]} 20... Be6 {[%clk 0:02:01.8]}
21. Rac1 {[%clk 0:01:12.5]} 21... Nc6 {[%clk 0:01:53.1]} 22. Qa4 {[%clk
0:01:08.3]} 22... N6a5 {[%clk 0:01:51]} 23. Ne4 {[%clk 0:01:05.4]} 23... h6
{[%clk 0:01:25.2]} 24. Bf6 {[%clk 0:01:02.1]} 24... Qb3 {[%clk 0:01:15.8]} 25.
Qxb3 {[%clk 0:00:57.5]} 25... Nxb3 {[%clk 0:01:15.3]} 26. Rxc4 {[%clk
0:00:55.9]} 26... Bxc4 {[%clk 0:01:14.6]} 27. Bxc4 {[%clk 0:00:56.8]} 27... Nd4
{[%clk 0:01:09.7]} 28. Nxe5 {[%clk 0:00:52.1]} 28... Rae8 {[%clk 0:01:01.5]} 29.
f4 {[%clk 0:00:52.2]} 29... Nf5 {[%clk 0:00:57.5]} 30. Re1 {[%clk 0:00:43.4]}
30... Rc8 {[%clk 0:00:53.6]} 31. c6 {[%clk 0:00:36.3]} 31... Bxf6 {[%clk
0:00:51.7]} 32. Nxf6+ {[%clk 0:00:36.4]} 32... Kg7 {[%clk 0:00:51.7]} 33. Nd5
{[%clk 0:00:33.6]} 33... Rfe8 {[%clk 0:00:47.4]} 34. c7 {[%clk 0:00:29.9]} 34...
f6 {[%clk 0:00:43]} 35. Nf3 {[%clk 0:00:27]} 35... Rxe1+ {[%clk 0:00:42.2]} 36.
Nxe1 {[%clk 0:00:27.9]} 36... Nd6 {[%clk 0:00:42.2]} 37. Ba6 {[%clk 0:00:27.7]}
37... Re8 {[%clk 0:00:41.6]} 38. Nd3 {[%clk 0:00:25.6]} 38... Kf7 {[%clk
0:00:37.3]} 39. Nc5 {[%clk 0:00:20.3]} 39... Re1+ {[%clk 0:00:35.5]} 40. Kf2
{[%clk 0:00:20.7]} 40... Rc1 {[%clk 0:00:35.7]} 41. Nd3 {[%clk 0:00:16.5]} 41...
Rc2+ {[%clk 0:00:35.5]} 42. Kf3 {[%clk 0:00:17]} 42... Ke6 {[%clk 0:00:34.9]}
43. N3b4 {[%clk 0:00:13.9]} 43... Rc1 {[%clk 0:00:31.7]} 44. g4 {[%clk
0:00:14.1]} 44... f5 {[%clk 0:00:30.8]} 45. gxf5+ {[%clk 0:00:14.5]} 45... gxf5
{[%clk 0:00:30.9]} 46. Kg3 {[%clk 0:00:11.6]} 46... Kd7 {[%clk 0:00:30.6]} 47.
Kh4 {[%clk 0:00:11.2]} 47... Rc5 {[%clk 0:00:24.5]} 48. Kh5 {[%clk 0:00:09.7]}
48... Nc8 {[%clk 0:00:22.3]} 49. Kg6 {[%clk 0:00:08.7]} 49... Nb6 {[%clk
0:00:22.1]} 50. Nxb6+ {[%clk 0:00:07.6]} 50... Kxc7 {[%clk 0:00:21.7]} 51. N6d5+
{[%clk 0:00:07.8]} 51... Kd6 {[%clk 0:00:21.8]} 52. Kxh6 {[%clk 0:00:08]} 52...
Rc3 {[%clk 0:00:20.2]} 53. Nxc3 {[%clk 0:00:07.7]} 1-0

[Event "*** Titled Tuesday Blitz"]
[Site "Chess.com"]
[Date "2020.04.28"]
[Round "1"]
[White "AlexTriapishko"]
[Black "fugadelafuga"]
[Result "1-0"]
[WhiteElo "2747"]
[BlackElo "2394"]
[TimeControl "180+1"]
[EndTime "10:07:56 PDT"]
[Termination "AlexTriapishko won by resignation"]

1. e4 {[%clk 0:02:37.6]} 1... c5 {[%clk 0:02:56.9]} 2. Nf3 {[%clk 0:02:35.9]}
2... Nc6 {[%clk 0:02:57.2]} 3. Nc3 {[%clk 0:02:35.8]} 3... g6 {[%clk 0:02:54.3]}
4. d4 {[%clk 0:02:33.1]} 4... cxd4 {[%clk 0:02:55.2]} 5. Nxd4 {[%clk 0:02:34]}
5... Bg7 {[%clk 0:02:56.1]} 6. Be3 {[%clk 0:02:34.5]} 6... Nf6 {[%clk
0:02:55.7]} 7. Be2 {[%clk 0:02:35]} 7... O-O {[%clk 0:02:55.3]} 8. Nb3 {[%clk
0:02:35.5]} 8... d6 {[%clk 0:02:51]} 9. f4 {[%clk 0:02:35.8]} 9... a6 {[%clk
0:02:48.1]} 10. g4 {[%clk 0:02:35.4]} 10... b5 {[%clk 0:02:42.7]} 11. g5 {[%clk
0:02:35.8]} 11... Nd7 {[%clk 0:02:40.6]} 12. a3 {[%clk 0:02:36.2]} 12... Nb6
{[%clk 0:02:37]} 13. h4 {[%clk 0:02:31.5]} 13... Nc4 {[%clk 0:02:35.3]} 14. Bxc4
{[%clk 0:02:29.8]} 14... bxc4 {[%clk 0:02:36.2]} 15. Nd4 {[%clk 0:02:16]} 15...
Bd7 {[%clk 0:02:06.1]} 16. Qd2 {[%clk 0:01:35.5]} 16... Rb8 {[%clk 0:02:03.4]}
17. Rb1 {[%clk 0:01:31.5]} 17... Nxd4 {[%clk 0:01:52.1]} 18. Bxd4 {[%clk
0:01:30.5]} 18... Bxd4 {[%clk 0:01:53]} 19. Qxd4 {[%clk 0:01:31.4]} 19... Qb6
{[%clk 0:01:46]} 20. Qxb6 {[%clk 0:01:29.9]} 20... Rxb6 {[%clk 0:01:46.9]} 21.
Nd5 {[%clk 0:01:30.4]} 21... Rb7 {[%clk 0:01:39.7]} 22. Nxe7+ {[%clk 0:01:30.3]}
22... Kh8 {[%clk 0:01:40.6]} 23. f5 {[%clk 0:01:09.6]} 23... Rfb8 {[%clk
0:01:23.7]} 24. f6 {[%clk 0:01:04.8]} 24... Rxb2 {[%clk 0:01:07.3]} 25. Rxb2
{[%clk 0:01:05.7]} 25... Rxb2 {[%clk 0:01:07.3]} 26. Kd2 {[%clk 0:01:06.6]}
26... h5 {[%clk 0:01:01.6]} 27. Kc3 {[%clk 0:01:03.9]} 27... Ra2 {[%clk
0:00:59.1]} 28. Rb1 {[%clk 0:00:58.5]} 28... Rxa3+ {[%clk 0:00:55.2]} 29. Kxc4
{[%clk 0:00:58.2]} 29... Be6+ {[%clk 0:00:50.8]} 30. Kd4 {[%clk 0:00:56.5]}
30... Ra4+ {[%clk 0:00:50.5]} 31. Kd3 {[%clk 0:00:54]} 31... a5 {[%clk
0:00:47.9]} 32. Nc6 {[%clk 0:00:36.3]} 32... d5 {[%clk 0:00:43]} 33. Nd4 {[%clk
0:00:24.4]} 33... dxe4+ {[%clk 0:00:43.9]} 34. Kxe4 {[%clk 0:00:22.8]} 34... Bc4
{[%clk 0:00:35.2]} 35. Rb8+ {[%clk 0:00:17.7]} 35... Kh7 {[%clk 0:00:34.8]} 36.
Ra8 {[%clk 0:00:17.5]} 36... Ra1 {[%clk 0:00:26.1]} 37. Nc6 {[%clk 0:00:17.8]}
37... Rh1 {[%clk 0:00:21.2]} 38. Nxa5 {[%clk 0:00:11.2]} 38... Rxh4+ {[%clk
0:00:17.5]} 39. Ke5 {[%clk 0:00:11.7]} 39... Be6 {[%clk 0:00:14.4]} 40. Nb7
{[%clk 0:00:09.7]} 40... Rg4 {[%clk 0:00:14.1]} 41. Nd8 {[%clk 0:00:10.2]} 41...
Rxg5+ {[%clk 0:00:14.1]} 42. Kd6 {[%clk 0:00:10.8]} 42... Rd5+ {[%clk
0:00:13.4]} 43. Ke7 {[%clk 0:00:10.1]} 43... Rd7+ {[%clk 0:00:13.5]} 44. Ke8
{[%clk 0:00:10.5]} 44... h4 {[%clk 0:00:12.5]} 45. Nxe6 {[%clk 0:00:10.4]} 45...
Rd2 {[%clk 0:00:10.2]} 46. Kxf7 {[%clk 0:00:08.8]} 46... h3 {[%clk 0:00:09.4]}
47. Ng5+ {[%clk 0:00:08.9]} 47... Kh6 {[%clk 0:00:09]} 48. Nxh3 {[%clk
0:00:09.8]} 48... Kh5 {[%clk 0:00:09.3]} 49. Rh8+ {[%clk 0:00:09.4]} 49... Kg4
{[%clk 0:00:09.2]} 50. Kxg6 {[%clk 0:00:10.3]} 50... Rxc2 {[%clk 0:00:09]} 51.
f7 {[%clk 0:00:10.5]} 1-0

[Event "*** Titled Tuesday Blitz"]
[Site "Chess.com"]
[Date "2020.04.28"]
[Round "1"]
[White "1977Ivan"]
[Black "realmadridtv"]
[Result "1/2-1/2"]
[WhiteElo "2647"]
[BlackElo "2341"]
[TimeControl "180+1"]
[EndTime "10:07:57 PDT"]
[Termination "Game drawn - insufficient material"]

1. c4 {[%clk 0:03:00.9]} 1... Nf6 {[%clk 0:02:59.7]} 2. Nc3 {[%clk 0:03:00.4]}
2... e6 {[%clk 0:02:59.4]} 3. e4 {[%clk 0:03:00]} 3... d5 {[%clk 0:02:57]} 4.
cxd5 {[%clk 0:03:00.5]} 4... exd5 {[%clk 0:02:57.9]} 5. e5 {[%clk 0:03:01]} 5...
Ne4 {[%clk 0:02:57]} 6. Nf3 {[%clk 0:03:01.6]} 6... Nc6 {[%clk 0:02:55.3]} 7.
Be2 {[%clk 0:03:00]} 7... Bf5 {[%clk 0:02:42.9]} 8. O-O {[%clk 0:02:57.1]} 8...
d4 {[%clk 0:02:28.1]} 9. Nxe4 {[%clk 0:02:47.7]} 9... Bxe4 {[%clk 0:02:29]} 10.
Bc4 {[%clk 0:02:44.9]} 10... Bd5 {[%clk 0:02:25.6]} 11. Qb3 {[%clk 0:02:35.7]}
11... Bxc4 {[%clk 0:02:18.1]} 12. Qxc4 {[%clk 0:02:35.6]} 12... Qd7 {[%clk
0:02:18.4]} 13. d3 {[%clk 0:02:35]} 13... O-O-O {[%clk 0:02:16.2]} 14. Bd2
{[%clk 0:02:34.2]} 14... Qd5 {[%clk 0:02:15.8]} 15. Rac1 {[%clk 0:02:30.7]}
15... Be7 {[%clk 0:02:06.4]} 16. Rfe1 {[%clk 0:02:30.8]} 16... Rhe8 {[%clk
0:02:03.6]} 17. b4 {[%clk 0:02:29.3]} 17... a6 {[%clk 0:01:43]} 18. Re4 {[%clk
0:02:26.8]} 18... f5 {[%clk 0:01:32.7]} 19. exf6 {[%clk 0:02:24.6]} 19... Qxc4
{[%clk 0:01:32]} 20. Rxc4 {[%clk 0:02:23]} 20... Bxf6 {[%clk 0:01:32]} 21. Rxe8
{[%clk 0:02:02.9]} 21... Rxe8 {[%clk 0:01:32.9]} 22. Kf1 {[%clk 0:02:02.8]}
22... Kd7 {[%clk 0:01:27.8]} 23. a3 {[%clk 0:01:53.8]} 23... h6 {[%clk
0:01:24.6]} 24. h3 {[%clk 0:01:52.5]} 24... g5 {[%clk 0:01:24.2]} 25. Rc5 {[%clk
0:01:49.9]} 25... Kd6 {[%clk 0:01:20.3]} 26. Rf5 {[%clk 0:01:42.5]} 26... Ke6
{[%clk 0:01:19.4]} 27. Rc5 {[%clk 0:01:36.1]} 27... Kd6 {[%clk 0:01:18]} 28. g4
{[%clk 0:01:36.1]} 28... Ne5 {[%clk 0:01:13.9]} 29. Nxe5 {[%clk 0:01:35]} 29...
Rxe5 {[%clk 0:01:13.1]} 30. Rc4 {[%clk 0:01:26.2]} 30... Re6 {[%clk 0:01:00.4]}
31. f4 {[%clk 0:01:25.9]} 31... c6 {[%clk 0:00:55.7]} 32. Kf2 {[%clk 0:01:24.2]}
32... Kc7 {[%clk 0:00:45.1]} 33. Rc5 {[%clk 0:01:21.9]} 33... Kd6 {[%clk
0:00:42]} 34. Rf5 {[%clk 0:01:14.9]} 34... gxf4 {[%clk 0:00:39.4]} 35. Bxf4+
{[%clk 0:01:14.2]} 35... Be5 {[%clk 0:00:30]} 36. Rxe5 {[%clk 0:00:55.9]} 36...
Rxe5 {[%clk 0:00:30.4]} 37. Kf3 {[%clk 0:00:56.3]} 37... Kd5 {[%clk 0:00:29.5]}
38. Bxe5 {[%clk 0:00:56.4]} 38... Kxe5 {[%clk 0:00:30.4]} 39. h4 {[%clk
0:00:56.6]} 39... b6 {[%clk 0:00:26.3]} 40. g5 {[%clk 0:00:56.4]} 40... hxg5
{[%clk 0:00:25.8]} 41. hxg5 {[%clk 0:00:56.7]} 41... Kf5 {[%clk 0:00:17.2]} 42.
g6 {[%clk 0:00:56.5]} 42... Kxg6 {[%clk 0:00:17.2]} 43. Ke4 {[%clk 0:00:56.7]}
43... Kf6 {[%clk 0:00:17.3]} 44. Kxd4 {[%clk 0:00:56.6]} 44... Kf5 {[%clk
0:00:14.9]} 45. Ke3 {[%clk 0:00:54.5]} 45... Ke5 {[%clk 0:00:14.9]} 46. d4+
{[%clk 0:00:53.8]} 46... Kd5 {[%clk 0:00:14.1]} 47. Kd3 {[%clk 0:00:54]} 47...
b5 {[%clk 0:00:14.4]} 48. Ke3 {[%clk 0:00:50.7]} 48... Kc4 {[%clk 0:00:14.8]}
49. Ke4 {[%clk 0:00:51]} 49... Kb3 {[%clk 0:00:10]} 50. Ke5 {[%clk 0:00:51]}
50... Kxa3 {[%clk 0:00:10.1]} 51. Kd6 {[%clk 0:00:51.2]} 51... Kxb4 {[%clk
0:00:09.8]} 52. Kxc6 {[%clk 0:00:51.2]} 52... a5 {[%clk 0:00:10.7]} 53. d5
{[%clk 0:00:51.5]} 53... a4 {[%clk 0:00:11.6]} 54. d6 {[%clk 0:00:52]} 54... a3
{[%clk 0:00:12.5]} 55. d7 {[%clk 0:00:52.3]} 55... a2 {[%clk 0:00:13.4]} 56.
d8=Q {[%clk 0:00:51.8]} 56... a1=Q {[%clk 0:00:14.3]} 57. Qe7+ {[%clk 0:00:49]}
57... Kc4 {[%clk 0:00:13.2]} 58. Qc5+ {[%clk 0:00:48.2]} 58... Kd3 {[%clk
0:00:12.7]} 59. Qf5+ {[%clk 0:00:47.7]} 59... Kd2 {[%clk 0:00:12.7]} 60. Qf2+
{[%clk 0:00:44.8]} 60... Kd3 {[%clk 0:00:12.9]} 61. Qf3+ {[%clk 0:00:42.6]}
61... Kd2 {[%clk 0:00:13.4]} 62. Qf4+ {[%clk 0:00:41.5]} 62... Kd3 {[%clk
0:00:13.7]} 63. Qf5+ {[%clk 0:00:40.2]} 63... Kd2 {[%clk 0:00:14.1]} 64. Qxb5
{[%clk 0:00:38.3]} 64... Qc3+ {[%clk 0:00:13.8]} 65. Qc5 {[%clk 0:00:37.4]}
65... Qxc5+ {[%clk 0:00:13.7]} 66. Kxc5 {[%clk 0:00:37.5]} 1/2-1/2